fUST/lending_fUST_20250203
["ID","MTS","AMOUNT","RATE_DAILY","PERIOD"]
[351403936,1738554648754,-500.0,0.00016849,2]
[351403937,1738554648764,-500.0,0.00016849,2]
[351403938,1738554648775,-418.13666634,0.00016849,2]
[351403939,1738554648784,-773.23,0.00016849,2]
[351403940,1738554648794,-513.306393,0.00016849,2]
[351403941,1738554648805,-500.0,0.00016849,2]
[351403942,1738554648815,-765.33,0.00016849,2]
[351403943,1738554648825,-275.713506,0.00016849,2]
[351403945,1738554648835,-516.30220982,0.00016849,2]
[351403947,1738554648846,-448.37666109,0.00016849,2]
[351403948,1738554648856,-275.713506,0.00016849,2]
[351403949,1738554648865,-505.28281539,0.00016849,2]
[351403950,1738554648877,-668.66,0.00016849,2]
[351403951,1738554648887,-500.0,0.00016849,2]
[351403952,1738554648898,-500.0,0.00016849,2]
[351403953,1738554648908,-500.0,0.00016849,2]
[351403954,1738554648919,-500.0,0.00016849,2]
[351403955,1738554648930,-358.56795769,0.00016849,2]
[351403956,1738554648940,-519.43395598,0.00016849,2]
[351403958,1738554648951,-513.18754979,0.00016849,2]
[351403959,1738554648961,-507.31358379,0.00016849,2]
[351403960,1738554648972,-500.0,0.00016849,2]
[351403961,1738554648983,-500.0,0.00016849,2]
[351403962,1738554648999,-515.83274063,0.00016849,2]
[351403963,1738554649010,-671.28806,0.00016849,2]
[351403964,1738554649021,-515.12486354,0.00016849,2]
[351403966,1738554649032,-500.0,0.00016849,2]
[351403967,1738554649042,-500.0,0.00016849,2]
[351403968,1738554649053,-671.28806,0.00016849,2]
[351403969,1738554649063,-507.74261997,0.00016849,2]
[351403970,1738554649074,-500.0,0.00016849,2]
[351403971,1738554649085,-531.30155575,0.00016849,2]
[351403972,1738554649096,-514.96847443,0.00016849,2]
[351403973,1738554649106,-500.0,0.00016849,2]
[351403975,1738554649116,-500.0,0.00016849,2]
[351403976,1738554649126,-500.0,0.00016849,2]
[351403977,1738554649137,-500.0,0.00016849,2]
[351403978,1738554649147,-500.0,0.00016849,2]
[351403979,1738554649159,-500.0,0.00016849,2]
[351403980,1738554649170,-500.0,0.00016849,2]
[351403981,1738554649181,-195.1041034,0.00016849,2]
[351403982,1738554649192,-500.0,0.00016849,2]
[351403983,1738554649204,-500.0,0.00016849,2]
[351403984,1738554649215,-3183.83,0.00016849,2]
[351403985,1738554649225,-274.46675374,0.00016849,2]
[351403986,1738554649235,-500.0,0.00016849,2]
[351403987,1738554649250,-596.49,0.00016849,2]
[351403988,1738554649261,-7065.8,0.00016849,2]
[351403989,1738554649273,-684.68,0.00016849,2]
[351403991,1738554649284,-500.0,0.00016849,2]
[351403992,1738554649295,-456.75396331,0.00016849,2]
[351403993,1738554649306,-500.0,0.00016849,2]
[351403994,1738554649317,-500.0,0.00016849,2]
[351403995,1738554649327,-151.0,0.00016849,2]
[351403996,1738554649338,-750.78,0.00016849,2]
[351403998,1738554649349,-151.0,0.00016849,2]
[351403999,1738554649360,-500.0,0.00016849,2]
[351404000,1738554649370,-500.0,0.00016849,2]
[351404001,1738554649381,-500.0,0.00016849,2]
[351404002,1738554649394,-500.0,0.00016849,2]
[351404003,1738554649406,-650.17,0.00016849,2]
[351404004,1738554649417,-500.0,0.00016849,2]
[351404005,1738554649427,-512.10560753,0.00016849,2]
[351404006,1738554649439,-1019.39,0.00016849,2]
[351404007,1738554649450,-500.0,0.00016849,2]
[351404008,1738554649460,-500.0,0.00016849,2]
[351404009,1738554649470,-500.0,0.00016849,2]
[351404010,1738554649481,-151.0,0.00016849,2]
[351404011,1738554649494,-8146.71,0.00016849,2]
[351404012,1738554649504,-151.0,0.00016849,2]
[351404013,1738554649515,-613.84,0.00016849,2]
[351404014,1738554649525,-550.81,0.00016849,2]
[351404015,1738554649537,-500.0,0.00016849,2]
[351404017,1738554649549,-500.0,0.00016849,2]
[351404018,1738554649560,-909.51,0.00016849,2]
[351404019,1738554649571,-500.0,0.00016849,2]
[351404020,1738554649584,-804.6,0.00016849,2]
[351404021,1738554649595,-500.0,0.00016849,2]
[351404022,1738554649608,-500.0,0.00016849,2]
[351404023,1738554649619,-500.0,0.00016849,2]
[351404024,1738554649630,-500.0,0.00016849,2]
[351404026,1738554649640,-2011.93,0.00016849,2]
[351404027,1738554649651,-517.18848237,0.00016849,2]
[351404028,1738554649661,-500.0,0.00016849,2]
[351404029,1738554649672,-500.0,0.00016849,2]
[351404030,1738554649683,-3668.25,0.00016849,2]
[351404031,1738554649694,-478.60458181,0.00016849,2]
[351404033,1738554649704,-500.0,0.00016849,2]
[351404034,1738554649714,-741.77,0.00016849,2]
[351404035,1738554649725,-1378.39,0.00016849,2]
[351404036,1738554649735,-500.0,0.00016849,2]
[351404037,1738554649749,-500.0,0.00016849,2]
[351404038,1738554649759,-500.0,0.00016849,2]
[351404040,1738554649769,-500.0,0.00016849,2]
[351404041,1738554649779,-500.0,0.00016849,2]
[351404042,1738554649789,-500.0,0.00016849,2]
[351404043,1738554649799,-500.0,0.00016849,2]
[351404044,1738554649809,-1589.79,0.00016849,2]
[351404045,1738554649819,-774.95,0.00016849,2]
[351404046,1738554649829,-500.0,0.00016849,2]
[351404047,1738554649838,-500.0,0.00016849,2]
[351404048,1738554649848,-1038.02388716,0.00016849,7]
[351404049,1738554649858,-500.0,0.00016849,2]
[351404050,1738554649867,-635.87,0.00016849,2]
[351404051,1738554649877,-1797.16,0.00016849,2]
[351404052,1738554649887,-724.24,0.00016849,2]
[351404053,1738554649896,-500.0,0.00016849,2]
[351404054,1738554649906,-668.66,0.00016849,2]
[351404055,1738554649917,-500.0,0.00016849,2]
[351404056,1738554649926,-1734.91,0.00016849,2]
[351404057,1738554649936,-500.0,0.00016849,2]
[351404058,1738554649945,-500.0,0.00016849,2]
[351404059,1738554649955,-205.95159752,0.00016849,2]
[351404060,1738554649966,-509.67861201,0.00016849,2]
[351404061,1738554649976,-500.0,0.00016849,2]
[351404062,1738554649986,-400.39968217,0.00016849,2]
[351404063,1738554649999,-500.0,0.00016849,2]
[351404064,1738554650008,-500.0,0.00016849,2]
[351404065,1738554650018,-1085.82,0.00016849,2]
[351404066,1738554650027,-500.0,0.00016849,2]
[351404068,1738554650037,-623.92,0.00016849,2]
[351404069,1738554650047,-500.0,0.00016849,2]
[351404070,1738554650057,-500.0,0.00016849,2]
[351404071,1738554650067,-500.0,0.00016849,2]
[351404072,1738554650077,-712.64,0.00016849,2]
[351404073,1738554650087,-1384.58,0.00016849,2]
[351404074,1738554650097,-564.8,0.00016849,2]
[351404075,1738554650107,-500.0,0.00016849,2]
[351404076,1738554650117,-523.69,0.00016849,2]
[351404077,1738554650128,-151.0,0.000169,2]
[351404078,1738554650138,-509.534165,0.000169,2]
[351404080,1738554650148,-509.534165,0.000169,2]
[351404081,1738554650158,-151.0,0.000169,2]
[351404082,1738554650168,-151.0,0.000169,2]
[351404083,1738554650177,-151.0,0.000169,2]
[351404084,1738554650187,-210.59388217,0.000169,2]
[351404085,1738554650197,-500.0,0.00016973,2]
[351404086,1738554650207,-500.0,0.00016973,2]
[351404087,1738554650217,-381.80590074,0.00016973,2]
[351404088,1738554650226,-500.0,0.00016973,2]
[351404089,1738554650237,-500.0,0.00016973,2]
[351404090,1738554650251,-269.57182901,0.00016973,2]
[351404091,1738554650260,-508.596524,0.00016973,2]
[351404092,1738554650270,-500.0,0.00016973,2]
[351404093,1738554650280,-500.0,0.00016973,2]
[351404094,1738554650290,-500.0,0.00016973,2]
[351404095,1738554650301,-501.25690535,0.00016973,2]
[351404096,1738554650311,-500.0,0.00016973,2]
[351404097,1738554650322,-500.0,0.00016973,2]
[351404098,1738554650333,-877.881464,0.00016973,2]
[351404099,1738554650343,-439.45345147,0.00016973,2]
[351404102,1738554650498,-438.42801253,0.00016973,2]
[351404103,1738554650508,-151.0,0.00016973,2]
[351404104,1738554650519,-151.0,0.00016986,2]
[351404105,1738554650530,-151.0,0.00016986,2]
[351404106,1738554650540,-151.0,0.00016986,2]
[351404107,1738554650550,-151.0,0.00016986,2]
[351404108,1738554650560,-151.0,0.00016986,2]
[351404110,1738554650570,-92.51070351,0.00016986,2]
[351404111,1738554650586,-58.48929649,0.00016986,2]
[351404112,1738554650596,-181.315323,0.00016986,2]
[351404113,1738554650605,-181.315323,0.00016986,2]
[351404114,1738554650615,-204.116579,0.00016986,2]
[351404115,1738554650626,-204.116579,0.00016986,2]
[351404116,1738554650635,-225.184195,0.00016986,2]
[351404117,1738554650646,-225.184195,0.00016986,2]
[351404118,1738554650656,-500.0,0.00016986,2]
[351404119,1738554650667,-500.0,0.00016986,2]
[351404121,1738554650678,-500.0,0.00016986,2]
[351404122,1738554650688,-500.0,0.00016986,2]
[351404123,1738554650698,-500.0,0.00016986,2]
[351404124,1738554650707,-500.0,0.00016986,2]
[351404125,1738554650717,-500.0,0.00016986,2]
[351404126,1738554650727,-500.0,0.00016986,2]
[351404127,1738554650737,-500.0,0.00016986,2]
[351404128,1738554650750,-165.5269752,0.00016986,2]
[351404129,1738554650760,-294.50262935,0.00016986,2]
[351404130,1738554650770,-504.86,0.00016986,2]
[351404131,1738554650780,-500.0,0.00016986,2]
[351404132,1738554650790,-500.0,0.00016986,2]
[351404133,1738554650799,-253.07318068,0.00016986,2]
[351404134,1738554650812,-313.58747304,0.00016986,2]
[351404135,1738554650823,-522.12529836,0.00016986,2]
[351404136,1738554650832,-500.0,0.00016986,2]
[351404137,1738554650843,-500.0,0.00016986,2]
[351404138,1738554650998,-500.0,0.00016986,2]
[351404139,1738554651008,-500.0,0.00016986,2]
[351404140,1738554651018,-505.3917942,0.00016986,2]
[351404141,1738554651028,-151.0,0.00016986,2]
[351404142,1738554651037,-151.0,0.00016986,2]
[351404143,1738554651047,-371.34581491,0.00016986,2]
[351404144,1738554651059,-128.65418509,0.00016986,2]
[351404145,1738554651068,-500.0,0.00016986,2]
[351404146,1738554651077,-500.0,0.00016986,2]
[351404147,1738554651087,-500.0,0.00016986,2]
[351404148,1738554651096,-500.0,0.00016986,2]
[351404149,1738554651106,-500.0,0.00016986,2]
[351404150,1738554651115,-500.0,0.00016986,2]
[351404152,1738554651125,-500.0,0.00016986,2]
[351404153,1738554651135,-501.93884118,0.00016986,2]
[351404154,1738554651144,-223.63482568,0.00016986,2]
[351404155,1738554651153,-500.0,0.00016986,2]
[351404156,1738554651164,-598.81786592,0.00016986,2]
[351404157,1738554651173,-500.0,0.00016986,2]
[351404158,1738554651183,-991.829039,0.00016986,2]
[351404160,1738554651193,-442.92715966,0.00016986,2]
[351404161,1738554651203,-500.0,0.00016986,2]
[351404162,1738554651212,-991.829039,0.00016986,2]
[351404163,1738554651221,-500.0,0.00016986,2]
[351404164,1738554651231,-500.0,0.00016986,2]
[351404165,1738554651243,-500.0,0.00016986,2]
[351404166,1738554651253,-500.0,0.00016986,2]
[351404167,1738554651262,-500.0,0.00016986,2]
[351404168,1738554651273,-500.0,0.00016986,2]
[351404169,1738554651283,-503.57194419,0.00016986,2]
[351404170,1738554651292,-500.0,0.00016986,2]
[351404171,1738554651303,-500.0,0.00016986,2]
[351404172,1738554651312,-505.52833097,0.00016986,2]
[351404173,1738554651322,-500.0,0.00016986,2]
[351404174,1738554651332,-505.96713152,0.00016986,2]
[351404175,1738554651341,-479.32647364,0.00016986,2]
[351404176,1738554651350,-252.391,0.00016986,2]
[351404177,1738554651360,-500.0,0.00016986,2]
[351404178,1738554651369,-500.0,0.00016986,2]
[351404179,1738554651378,-252.391,0.00016986,2]
[351404180,1738554651388,-500.0,0.00016986,2]
[351404181,1738554651398,-500.0,0.00016986,2]
[351404182,1738554651407,-500.0,0.00016986,2]
[351404183,1738554651416,-512.5267898,0.00016986,2]
[351404184,1738554651425,-500.0,0.00016986,2]
[351404185,1738554651438,-500.0,0.00016986,2]
[351404186,1738554651448,-500.0,0.00016986,2]
[351404187,1738554651457,-500.0,0.00016986,2]
[351404188,1738554651466,-500.0,0.00016986,2]
[351404189,1738554651475,-500.0,0.00016986,2]
[351404190,1738554651485,-500.0,0.00016986,2]
[351404191,1738554651497,-500.0,0.00016986,2]
[351404192,1738554651507,-500.0,0.00016986,2]
[351404193,1738554651517,-265.04745968,0.00016986,2]
[351404194,1738554651526,-500.0,0.00016986,2]
[351404195,1738554651535,-173.779155,0.00016986,2]
[351404196,1738554651545,-500.0,0.00016986,2]
[351404197,1738554651554,-500.0,0.00016986,2]
[351404198,1738554651563,-500.0,0.00016986,2]
[351404199,1738554651572,-173.779155,0.00016986,2]
[351404200,1738554651584,-500.0,0.00016986,2]
[351404201,1738554651594,-500.0,0.00016986,2]
[351404202,1738554651605,-500.0,0.00016986,2]
[351404203,1738554651614,-500.0,0.00016986,2]
[351404204,1738554651623,-500.0,0.00016986,2]
[351404205,1738554651633,-500.0,0.00016986,2]
[351404206,1738554651643,-500.0,0.00016986,2]
[351404207,1738554651652,-500.0,0.00016986,2]
[351404208,1738554651662,-151.0,0.00016986,2]
[351404209,1738554651673,-151.0,0.00016986,2]
[351404210,1738554651683,-151.0,0.00016986,2]
[351404211,1738554651694,-511.93875985,0.00016986,2]
[351404212,1738554651705,-773.23,0.00016986,2]
[351404213,1738554651715,-151.0,0.00016986,2]
[351404214,1738554651724,-151.826651,0.00016986,2]
[351404215,1738554651734,-500.0,0.00016986,2]
[351404216,1738554651748,-765.33,0.00016986,2]
[351404217,1738554651759,-275.713506,0.00016986,2]
[351404218,1738554651768,-275.713506,0.00016986,2]
[351404219,1738554651778,-668.66,0.00016986,2]
[351404220,1738554651787,-500.0,0.00016986,2]
[351404221,1738554651797,-500.0,0.00016986,2]
[351404222,1738554651807,-500.0,0.00016986,2]
[351404223,1738554651818,-500.0,0.00016986,2]
[351404224,1738554651828,-500.0,0.00016986,2]
[351404225,1738554651838,-500.0,0.00016986,2]
[351404226,1738554651848,-671.28806,0.00016986,2]
[351404227,1738554651859,-501.76681509,0.00016986,2]
[351404228,1738554651869,-500.0,0.00016986,2]
[351404229,1738554651879,-671.28806,0.00016986,2]
[351404230,1738554651889,-500.0,0.00016986,2]
[351404231,1738554651899,-429.58784351,0.00016986,2]
[351404232,1738554651908,-500.0,0.00016986,2]
[351404233,1738554651918,-500.0,0.00016986,2]
[351404234,1738554651928,-500.0,0.00016986,2]
[351404235,1738554651939,-500.0,0.00016986,2]
[351404236,1738554651948,-500.0,0.00016986,2]
[351404237,1738554651958,-500.0,0.00016986,2]
[351404238,1738554651968,-500.0,0.00016986,2]
[351404239,1738554651978,-3183.83,0.00016986,2]
[351404240,1738554651988,-500.0,0.00016986,2]
[351404241,1738554652005,-596.49,0.00016986,2]
[351404242,1738554652015,-7065.8,0.00016986,2]
[351404243,1738554652025,-684.68,0.00016986,2]
[351404245,1738554652036,-758.586966,0.00016986,2]
[351404246,1738554652046,-500.0,0.00016986,2]
[351404247,1738554652056,-151.0,0.00016986,2]
[351404248,1738554652065,-500.0,0.00016986,2]
[351404249,1738554652075,-758.586966,0.00016986,2]
[351404250,1738554652085,-500.0,0.00016986,2]
[351404252,1738554652095,-151.0,0.00016986,2]
[351404253,1738554652105,-750.78,0.00016986,2]
[351404254,1738554652114,-221.651867,0.00016986,2]
[351404255,1738554652125,-500.0,0.00016986,2]
[351404256,1738554652135,-185.28,0.00016986,2]
[351404257,1738554652146,-500.0,0.00016986,2]
[351404258,1738554652156,-650.17,0.00016986,2]
[351404259,1738554652167,-151.0,0.00016986,2]
[351404260,1738554652177,-151.0,0.00016986,2]
[351404261,1738554652188,-500.0,0.00016986,2]
[351404262,1738554652198,-1019.39,0.00016986,2]
[351404263,1738554652209,-500.0,0.00016986,2]
[351404264,1738554652219,-500.0,0.00016986,2]
[351404265,1738554652230,-510.03032395,0.00016986,2]
[351404266,1738554652241,-151.0,0.00016986,2]
[351404267,1738554652256,-8146.71,0.00016986,2]
[351404268,1738554652267,-163.131682,0.00016986,2]
[351404269,1738554652278,-151.0,0.00016986,2]
[351404270,1738554652288,-613.84,0.00016986,2]
[351404271,1738554652299,-550.81,0.00016986,2]
[351404272,1738554652310,-500.0,0.00016986,2]
[351404273,1738554652321,-500.0,0.00016986,2]
[351404274,1738554652331,-909.51,0.00016986,2]
[351404275,1738554652341,-804.6,0.00016986,2]
[351404276,1738554652351,-527.5529708,0.00016986,2]
[351404277,1738554652362,-500.0,0.00016986,2]
[351404278,1738554652372,-151.0,0.00016986,2]
[351404279,1738554652381,-257.06580851,0.00016986,2]
[351404280,1738554652391,-500.0,0.00016986,2]
[351404281,1738554652400,-2011.93,0.00016986,2]
[351404283,1738554652410,-512.83469306,0.00016986,2]
[351404284,1738554652419,-500.0,0.00016986,2]
[351404285,1738554652429,-3668.25,0.00016986,2]
[351404286,1738554652438,-515.28692259,0.00016986,2]
[351404287,1738554652447,-741.77,0.00016986,2]
[351404288,1738554652457,-1378.39,0.00016986,2]
[351404289,1738554652466,-500.0,0.00016986,2]
[351404290,1738554652475,-560.47425121,0.00016986,2]
[351404291,1738554652485,-500.0,0.00016986,2]
[351404292,1738554652498,-500.0,0.00016986,2]
[351404294,1738554652508,-500.0,0.00016986,2]
[351404295,1738554652518,-500.0,0.00016986,2]
[351404296,1738554652527,-510.77215606,0.00016986,2]
[351404297,1738554652537,-1589.79,0.00016986,2]
[351404298,1738554652546,-774.95,0.00016986,2]
[351404299,1738554652556,-500.0,0.00016986,2]
[351404300,1738554652565,-500.0,0.00016986,2]
[351404301,1738554652575,-500.0,0.00016986,2]
[351404302,1738554652588,-635.87,0.00016986,2]
[351404303,1738554652597,-1797.16,0.00016986,2]
[351404304,1738554652607,-724.24,0.00016986,2]
[351404305,1738554652616,-521.73425706,0.00016986,2]
[351404306,1738554652627,-668.66,0.00016986,2]
[351404307,1738554652636,-500.0,0.00016986,2]
[351404308,1738554652645,-1734.91,0.00016986,2]
[351404309,1738554652654,-500.0,0.00016986,2]
[351404310,1738554652664,-500.0,0.00016986,2]
[351404311,1738554652674,-521.56707262,0.00016986,2]
[351404312,1738554652688,-500.0,0.00016986,2]
[351404313,1738554652697,-1085.82,0.00016986,2]
[351404314,1738554652706,-500.0,0.00016986,2]
[351404315,1738554652716,-500.0,0.00016986,2]
[351404316,1738554652725,-500.0,0.00016986,2]
[351404317,1738554652735,-500.0,0.00016986,2]
[351404318,1738554652747,-631.61288461,0.00016986,2]
[351404319,1738554652759,-500.0,0.00016986,2]
[351404320,1738554652769,-264.95379472,0.00016986,2]
[351404321,1738554652779,-500.0,0.00016986,2]
[351404322,1738554652789,-623.92,0.00016986,2]
[351404323,1738554652799,-500.0,0.00016986,2]
[351404324,1738554652808,-500.0,0.00016986,2]
[351404325,1738554652817,-500.0,0.00016986,2]
[351404326,1738554652827,-712.64,0.00016986,2]
[351404327,1738554652836,-1384.58,0.00016986,2]
[351404328,1738554652845,-564.8,0.00016986,2]
[351404329,1738554652855,-500.0,0.00016986,2]
[351404330,1738554652864,-523.69,0.00016986,2]
[351404331,1738554652873,-5008.482,0.00016986,2]
[351404332,1738554652883,-210.59388211,0.00016991,2]
[351404333,1738554652893,-11667.8,0.00017,2]
[351404334,1738554652902,-151.0,0.00017,2]
[351404335,1738554652912,-151.0,0.00017,2]
[351404336,1738554652922,-22484.10885696,0.00017,2]
[351404337,1738554652931,-153131.76448958,0.00017,7]
[351404338,1738554652941,-204.116579,0.00017,2]
[351404339,1738554652951,-204.116579,0.00017,2]
[351404340,1738554652961,-151.0,0.00017,2]
[351404341,1738554652970,-10061.51,0.00017,2]
[351404342,1738554652980,-509.534165,0.00017,2]
[351404343,1738554652989,-509.534165,0.00017,2]
[351404344,1738554653003,-151.0,0.00017,2]
[351404345,1738554653012,-151.0,0.00017,2]
[351404346,1738554653022,-205.28458561,0.00017,2]
[351404347,1738554653031,-151.0,0.00017,2]
[351404348,1738554653040,-151.0,0.00017,2]
[351404349,1738554653050,-569.324052,0.00017,2]
[351404350,1738554653059,-569.324052,0.00017,2]
[351404351,1738554653069,-464.083288,0.00017,2]
[351404352,1738554653078,-464.083288,0.00017,2]
[351404353,1738554653088,-646.19324,0.00017,2]
[351404354,1738554653097,-646.19324,0.00017,2]
[351404355,1738554653108,-174.602072,0.00017,2]
[351404356,1738554653117,-151.0,0.00017,2]
[351404357,1738554653127,-151.0,0.00017,2]
[351404358,1738554653137,-991.829039,0.00017,2]
[351404359,1738554653147,-991.829039,0.00017,2]
[351404360,1738554653157,-252.391,0.00017,2]
[351404361,1738554653167,-252.391,0.00017,2]
[351404362,1738554653176,-173.779155,0.00017,2]
[351404363,1738554653186,-173.779155,0.00017,2]
[351404364,1738554653196,-151.0,0.00017,2]
[351404365,1738554653205,-151.0,0.00017,2]
[351404366,1738554653215,-151.0,0.00017,2]
[351404367,1738554653225,-151.0,0.00017,2]
[351404368,1738554653234,-275.713506,0.00017,2]
[351404369,1738554653246,-275.713506,0.00017,2]
[351404370,1738554653256,-671.28806,0.00017,2]
[351404371,1738554653265,-671.28806,0.00017,2]
[351404372,1738554653275,-877.881464,0.00017,2]
[351404373,1738554653284,-877.881464,0.00017,2]
[351404374,1738554653294,-758.586966,0.00017,2]
[351404375,1738554653304,-151.0,0.00017,2]
[351404376,1738554653313,-758.586966,0.00017,2]
[351404377,1738554653322,-151.0,0.00017,2]
[351404378,1738554653332,-151.0,0.00017,2]
[351404379,1738554653342,-239.905748,0.00017,2]
[351404381,1738554653352,-151.0,0.00017,2]
[351404382,1738554653361,-151.0,0.00017,2]
[351404383,1738554653371,-151.0,0.00017,2]
[351404384,1738554653379,-151.0,0.00017,2]
[351404385,1738554653389,-156.0,0.00017012,2]
[351404386,1738554653398,-210.59388211,0.00017082,2]
[351404387,1738554653407,-354.5475049,0.00017096,2]
[351404388,1738554653416,-354.5475049,0.00017096,2]
[351404389,1738554653425,-354.5475049,0.00017096,2]
[351404390,1738554653436,-354.5475049,0.00017096,2]
[351404391,1738554653446,-179.251,0.000171,2]
[351404392,1738554653455,-151.0,0.000171,2]
[351404393,1738554653464,-151.0,0.000171,2]
[351404394,1738554653474,-151.0,0.00017123,2]
[351404395,1738554653483,-151.0,0.00017123,2]
[351404396,1738554653494,-151.0,0.00017123,2]
[351404397,1738554653503,-175.793076,0.00017123,2]
[351404398,1738554653513,-175.793076,0.00017123,2]
[351404399,1738554653522,-151.0,0.00017123,2]
[351404400,1738554653531,-151.0,0.00017123,2]
[351404401,1738554653541,-181.315323,0.00017123,2]
[351404402,1738554653551,-181.315323,0.00017123,2]
[351404403,1738554653560,-216.368826,0.00017123,2]
[351404404,1738554653570,-509.534165,0.00017123,2]
[351404405,1738554653580,-509.534165,0.00017123,2]
[351404406,1738554653590,-151.0,0.00017123,2]
[351404407,1738554653599,-151.0,0.00017123,2]
[351404408,1738554653613,-582.02869405,0.00017123,2]
[351404409,1738554653623,-500.0,0.00017123,2]
[351404410,1738554653633,-500.0,0.00017123,2]
[351404411,1738554653643,-249.1,0.00017123,2]
[351404412,1738554653652,-500.0,0.00017123,2]
[351404413,1738554653662,-500.0,0.00017123,2]
[351404414,1738554653672,-500.0,0.00017123,2]
[351404415,1738554653683,-500.0,0.00017123,2]
[351404416,1738554653692,-500.0,0.00017123,2]
[351404417,1738554653702,-500.0,0.00017123,2]
[351404418,1738554653712,-500.0,0.00017123,2]
[351404419,1738554653722,-500.0,0.00017123,2]
[351404420,1738554653732,-500.0,0.00017123,2]
[351404421,1738554653742,-500.0,0.00017123,2]
[351404422,1738554653753,-500.0,0.00017123,2]
[351404423,1738554653763,-500.0,0.00017123,2]
[351404424,1738554653773,-500.0,0.00017123,2]
[351404425,1738554653782,-609.92308033,0.00017123,2]
[351404426,1738554653793,-500.0,0.00017123,2]
[351404427,1738554653802,-500.0,0.00017123,2]
[351404428,1738554653811,-500.0,0.00017123,2]
[351404429,1738554653821,-500.0,0.00017123,2]
[351404430,1738554653831,-500.0,0.00017123,2]
[351404431,1738554653840,-500.0,0.00017123,2]
[351404432,1738554653850,-500.0,0.00017123,2]
[351404433,1738554653859,-500.0,0.00017123,2]
[351404434,1738554653869,-500.0,0.00017123,2]
[351404435,1738554653878,-500.0,0.00017123,2]
[351404436,1738554653888,-500.0,0.00017123,2]
[351404437,1738554653898,-500.0,0.00017123,2]
[351404438,1738554653908,-500.0,0.00017123,2]
[351404439,1738554653918,-500.0,0.00017123,2]
[351404440,1738554653927,-500.0,0.00017123,2]
[351404441,1738554653937,-500.0,0.00017123,2]
[351404442,1738554653947,-500.0,0.00017123,2]
[351404443,1738554653956,-500.0,0.00017123,2]
[351404444,1738554653966,-500.0,0.00017123,2]
[351404445,1738554653975,-248.28545999,0.00017123,2]
[351404446,1738554653985,-500.0,0.00017123,2]
[351404447,1738554653996,-500.0,0.00017123,2]
[351404448,1738554654005,-500.0,0.00017123,2]
[351404449,1738554654014,-500.0,0.00017123,2]
[351404450,1738554654024,-500.0,0.00017123,2]
[351404451,1738554654033,-384.50511464,0.00017123,2]
[351404452,1738554654043,-500.0,0.00017123,2]
[351404453,1738554654052,-301.96173324,0.00017123,2]
[351404454,1738554654062,-500.0,0.00017123,2]
[351404455,1738554654071,-500.0,0.00017123,2]
[351404456,1738554654081,-500.0,0.00017123,2]
[351404457,1738554654090,-500.0,0.00017123,2]
[351404459,1738554654100,-157.34967231,0.00017123,2]
[351404460,1738554654109,-602.65244376,0.00017123,2]